fUSD/lending_fUSD_20240913
["ID","MTS","AMOUNT","RATE_DAILY","PERIOD"]
[337964630,1726218648177,-575.28,0.00013821,2]
[337964632,1726218648186,-500.0,0.00013821,2]
[337964634,1726218648196,-571.35,0.00013821,2]
[337964636,1726218648206,-500.0,0.00013821,2]
[337964638,1726218648215,-609.77,0.00013821,2]
[337964640,1726218648225,-500.0,0.00013821,2]
[337964642,1726218648234,-528.89,0.00013821,2]
[337964644,1726218648245,-500.0,0.00013821,2]
[337964645,1726218648255,-804.65,0.00013821,2]
[337964647,1726218648264,-500.0,0.00013821,2]
[337964649,1726218648273,-500.0,0.00013821,2]
[337964651,1726218648282,-635.79,0.00013821,2]
[337964653,1726218648291,-1000.0,0.00013854,2]
[337964655,1726218648300,-500.0,0.00013873,2]
[337964657,1726218648309,-207.09,0.00013891,2]
[337964659,1726218648318,-153.81130166,0.000139,3]
[337964661,1726218648327,-246.89441,0.00013913,2]
[337964663,1726218648336,-608.45161813,0.00013939,2]
[337964665,1726218648346,-150.0,0.00013953,2]
[337964667,1726218648355,-1014.0,0.0001398,2]
[337964669,1726218648364,-1000.53757212,0.00014,2]
[337964671,1726218648375,-1000.0,0.00014009,2]
[337964673,1726218648384,-932.0,0.00014047,2]
[337964675,1726218648393,-153.81130166,0.00014085,3]
[337964677,1726218648403,-500.0,0.00014093,2]
[337964679,1726218648412,-500.0,0.00014093,2]
[337964681,1726218648422,-500.0,0.00014093,2]
[337964683,1726218648431,-500.0,0.00014093,2]
[337964684,1726218648440,-1051.47,0.00014093,2]
[337964686,1726218648450,-500.0,0.00014093,2]
[337964688,1726218648459,-500.0,0.00014093,2]
[337964690,1726218648468,-500.0,0.00014093,2]
[337964692,1726218648477,-500.0,0.00014093,2]
[337964694,1726218648487,-500.0,0.00014093,2]
[337964696,1726218648496,-684.79,0.00014093,2]
[337964698,1726218648505,-636.35,0.00014093,2]
[337964700,1726218648514,-573.2,0.00014093,2]
[337964702,1726218648524,-686.46,0.00014093,2]
[337964704,1726218648533,-1491.23,0.00014093,2]
[337964706,1726218648542,-500.0,0.00014093,2]
[337964708,1726218648552,-1664.27,0.00014093,2]
[337964710,1726218648562,-500.0,0.00014093,2]
[337964712,1726218648571,-1564.31,0.00014093,2]
[337964714,1726218648581,-500.0,0.00014093,2]
[337964716,1726218648591,-500.0,0.00014093,2]
[337964718,1726218648600,-500.0,0.00014093,2]
[337964720,1726218648610,-1413.14,0.00014093,2]
[337964722,1726218648619,-500.0,0.00014093,2]
[337964724,1726218648628,-500.0,0.00014093,2]
[337964726,1726218648637,-3051.98,0.00014093,2]
[337964728,1726218648649,-500.0,0.00014093,2]
[337964730,1726218648658,-500.0,0.00014093,2]
[337964732,1726218648668,-935.88,0.00014093,2]
[337964734,1726218648677,-6217.46,0.00014093,2]
[337964736,1726218648686,-500.0,0.00014093,2]
[337964738,1726218648695,-1193.26,0.00014093,2]
[337964740,1726218648705,-1336.82,0.00014093,2]
[337964742,1726218648715,-500.0,0.00014093,2]
[337964744,1726218648724,-500.0,0.00014093,2]
[337964746,1726218648733,-500.0,0.00014093,2]
[337964747,1726218648742,-505.77,0.00014093,2]
[337964749,1726218648751,-500.0,0.00014093,2]
[337964751,1726218648762,-500.0,0.00014093,2]
[337964753,1726218648771,-1166.31,0.00014093,2]
[337964755,1726218648782,-500.0,0.00014093,2]
[337964757,1726218648791,-7145.51,0.00014093,2]
[337964759,1726218648801,-546.84,0.00014093,2]
[337964761,1726218648810,-500.0,0.00014093,2]
[337964763,1726218648820,-500.0,0.00014093,2]
[337964765,1726218648830,-500.0,0.00014093,2]
[337964767,1726218648839,-1017.98,0.00014093,2]
[337964769,1726218648849,-500.0,0.00014093,2]
[337964771,1726218648859,-500.0,0.00014093,2]
[337964773,1726218648868,-500.0,0.00014093,2]
[337964775,1726218648877,-604.72,0.00014093,2]
[337964777,1726218648886,-1027.28,0.00014093,2]
[337964779,1726218648896,-500.0,0.00014093,2]
[337964781,1726218648906,-500.0,0.00014093,2]
[337964783,1726218648914,-544.09,0.00014093,2]
[337964784,1726218648923,-1018.93,0.00014094,2]
[337964786,1726218648933,-500.0,0.00014094,2]
[337964788,1726218648942,-500.0,0.00014094,2]
[337964790,1726218648952,-500.0,0.00014094,2]
[337964792,1726218648961,-500.0,0.00014094,2]
[337964794,1726218648970,-500.0,0.00014094,2]
[337964796,1726218648979,-500.0,0.00014094,2]
[337964798,1726218648989,-500.0,0.00014094,2]
[337964800,1726218648998,-515.02866773,0.00014094,2]
[337964802,1726218649007,-500.0,0.00014094,2]
[337964804,1726218649016,-500.0,0.00014094,2]
[337964806,1726218649025,-500.0,0.00014094,2]
[337964808,1726218649035,-210.02,0.00014094,2]
[337964810,1726218649044,-500.0,0.00014094,2]
[337964812,1726218649053,-700.3,0.00014094,2]
[337964813,1726218649062,-500.0,0.00014094,2]
[337964815,1726218649071,-500.0,0.00014094,2]
[337964817,1726218649080,-500.0,0.00014094,2]
[337964819,1726218649090,-500.0,0.00014094,2]
[337964821,1726218649099,-500.0,0.00014094,2]
[337964823,1726218649108,-500.0,0.00014094,2]
[337964825,1726218649118,-500.0,0.00014094,2]
[337964827,1726218649127,-500.0,0.00014094,2]
[337964829,1726218649136,-500.0,0.00014094,2]
[337964831,1726218649146,-500.0,0.00014094,2]
[337964833,1726218649155,-500.0,0.00014094,2]
[337964835,1726218649165,-500.0,0.00014094,2]
[337964837,1726218649177,-500.0,0.00014094,2]
[337964839,1726218649187,-500.0,0.00014094,2]
[337964841,1726218649196,-500.0,0.00014094,2]
[337964843,1726218649205,-500.0,0.00014094,2]
[337964845,1726218649215,-500.0,0.00014094,2]
[337964847,1726218649225,-500.0,0.00014094,2]
[337964849,1726218649234,-500.0,0.00014094,2]
[337964851,1726218649244,-500.0,0.00014094,2]
[337964853,1726218649254,-705.44,0.00014094,2]
[337964855,1726218649264,-195.03505589,0.00014094,2]
[337964857,1726218649273,-772.83,0.00014094,2]
[337964859,1726218649282,-500.0,0.00014094,2]
[337964861,1726218649291,-500.0,0.00014094,2]
[337964862,1726218649300,-500.0,0.00014094,2]
[337964864,1726218649309,-500.0,0.00014094,2]
[337964866,1726218649319,-500.0,0.00014094,2]
[337964868,1726218649329,-500.0,0.00014094,2]
[337964870,1726218649339,-500.0,0.00014094,2]
[337964872,1726218649348,-598.48,0.00014094,2]
[337964874,1726218649357,-678.8,0.00014094,2]
[337964876,1726218649367,-1399.64,0.00014094,2]
[337964878,1726218649376,-264.18450938,0.00014094,2]
[337964880,1726218649386,-5569.89,0.00014094,2]
[337964882,1726218649395,-654.19,0.00014094,2]
[337964884,1726218649405,-8461.19,0.00014094,2]
[337964886,1726218649415,-519.34,0.00014094,2]
[337964888,1726218649424,-842.69,0.00014094,2]
[337964889,1726218649433,-500.0,0.00014094,2]
[337964891,1726218649442,-500.0,0.00014094,2]
[337964893,1726218649452,-619.44,0.00014094,2]
[337964895,1726218649461,-500.0,0.00014094,2]
[337964897,1726218649471,-500.0,0.00014094,2]
[337964899,1726218649480,-500.0,0.00014094,2]
[337964901,1726218649490,-735.86,0.00014094,2]
[337964903,1726218649500,-2568.57,0.00014094,2]
[337964905,1726218649509,-524.53,0.00014094,2]
[337964907,1726218649519,-921.95,0.00014094,2]
[337964909,1726218649528,-560.62,0.00014094,2]
[337964911,1726218649537,-500.0,0.00014094,2]
[337964913,1726218649546,-500.0,0.00014094,2]
[337964915,1726218649555,-946.96,0.00014094,2]
[337964917,1726218649565,-500.0,0.00014094,2]
[337964919,1726218649575,-502.01,0.00014094,2]
[337964921,1726218649584,-680.43,0.00014094,2]
[337964923,1726218649593,-500.0,0.00014094,2]
[337964924,1726218649602,-500.0,0.00014094,2]
[337964925,1726218649611,-557.51,0.00014094,2]
[337964926,1726218649620,-500.0,0.00014094,2]
[337964927,1726218649630,-500.0,0.00014094,2]
[337964928,1726218649639,-500.0,0.00014094,2]
[337964929,1726218649655,-500.0,0.00014094,2]
[337964930,1726218649664,-500.0,0.00014094,2]
[337964931,1726218649673,-731.18,0.00014094,2]
[337964932,1726218649683,-500.0,0.00014094,2]
[337964933,1726218649692,-500.0,0.00014094,2]
[337964934,1726218649701,-500.0,0.00014094,2]
[337964935,1726218649710,-625.36,0.00014094,2]
[337964936,1726218649719,-500.0,0.00014094,2]
[337964937,1726218649728,-500.0,0.00014094,2]
[337964939,1726218649738,-500.0,0.00014094,2]
[337964941,1726218649747,-500.0,0.00014094,2]
[337964942,1726218649756,-500.0,0.00014094,2]
[337964944,1726218649765,-887.09,0.00014094,2]
[337964947,1726218649775,-500.0,0.00014094,2]
[337964948,1726218649784,-500.0,0.00014094,2]
[337964950,1726218649793,-788.03,0.00014094,2]
[337964952,1726218649803,-500.0,0.00014094,2]
[337964954,1726218649812,-500.0,0.00014094,2]
[337964956,1726218649822,-500.0,0.00014094,2]
[337964958,1726218649831,-500.0,0.00014094,2]
[337964960,1726218649841,-500.0,0.00014094,2]
[337964962,1726218649850,-500.0,0.00014094,2]
[337964964,1726218649860,-500.0,0.00014094,2]
[337964966,1726218649869,-500.0,0.00014094,2]
[337964968,1726218649880,-631.4,0.00014094,2]
[337964970,1726218649891,-500.0,0.00014094,2]
[337964972,1726218649901,-500.0,0.00014094,2]
[337964974,1726218649910,-500.0,0.00014094,2]
[337964976,1726218649920,-500.0,0.00014094,2]
[337964978,1726218649929,-500.0,0.00014094,2]
[337964980,1726218649939,-500.0,0.00014094,2]
[337964982,1726218649948,-500.0,0.00014094,2]
[337964984,1726218649958,-500.0,0.00014094,2]
[337964986,1726218649967,-500.0,0.00014094,2]
[337964987,1726218649976,-500.0,0.00014095,2]
[337964989,1726218649985,-532.61,0.00014095,2]
[337964991,1726218649994,-500.0,0.00014095,2]
[337964994,1726218650006,-500.0,0.00014095,2]
[337964996,1726218650016,-500.0,0.00014095,2]
[337964998,1726218650027,-500.0,0.00014095,2]
[337965000,1726218650039,-500.0,0.00014095,2]
[337965002,1726218650049,-500.0,0.00014095,2]
[337965004,1726218650059,-600.68,0.00014095,2]
[337965006,1726218650068,-500.0,0.00014095,2]
[337965008,1726218650077,-500.0,0.00014095,2]
[337965010,1726218650087,-500.0,0.00014095,2]
[337965012,1726218650097,-500.0,0.00014095,2]
[337965014,1726218650107,-500.0,0.00014095,2]
[337965016,1726218650116,-500.0,0.00014095,2]
[337965018,1726218650126,-500.0,0.00014095,2]
[337965020,1726218650135,-500.0,0.00014095,2]
[337965022,1726218650146,-500.0,0.00014095,2]
[337965024,1726218650155,-500.0,0.00014095,2]
[337965026,1726218650166,-500.0,0.00014095,2]
[337965027,1726218650178,-500.0,0.00014095,2]
[337965029,1726218650187,-500.0,0.00014095,2]
[337965031,1726218650199,-500.0,0.00014095,2]
[337965033,1726218650210,-500.0,0.00014095,2]
[337965035,1726218650219,-500.0,0.00014095,2]
[337965037,1726218650228,-500.0,0.00014095,2]
[337965039,1726218650237,-575.28,0.00014095,2]
[337965041,1726218650247,-500.0,0.00014095,2]
[337965043,1726218650256,-571.35,0.00014095,2]
[337965045,1726218650265,-500.0,0.00014095,2]
[337965047,1726218650274,-609.77,0.00014095,2]
[337965048,1726218650283,-500.0,0.00014095,2]
[337965050,1726218650293,-528.89,0.00014095,2]
[337965052,1726218650303,-500.0,0.00014095,2]
[337965054,1726218650312,-804.65,0.00014095,2]
[337965056,1726218650322,-500.0,0.00014095,2]
[337965058,1726218650331,-500.0,0.00014095,2]
[337965060,1726218650341,-635.79,0.00014095,2]
[337965062,1726218650350,-608.45161813,0.00014132,2]
[337965064,1726218650360,-246.89441,0.0001416,2]
[337965066,1726218650369,-1000.0,0.00014164,2]
[337965068,1726218650378,-350.0,0.000142,5]
[337965070,1726218650388,-2001.0,0.000142,30]
[337965072,1726218650397,-167.0,0.00014219,2]
[337965074,1726218650406,-336.301883,0.00014247,2]
[337965075,1726218650416,-1000.0,0.00014319,2]
[337965077,1726218650425,-608.45161813,0.00014324,2]
[337965079,1726218650434,-153.81130166,0.00014358,3]
[337965081,1726218650443,-500.0,0.00014367,2]
[337965083,1726218650452,-500.0,0.00014367,2]
[337965085,1726218650462,-500.0,0.00014367,2]
[337965087,1726218650471,-500.0,0.00014367,2]
[337965089,1726218650480,-1051.47,0.00014367,2]
[337965091,1726218650489,-500.0,0.00014367,2]
[337965093,1726218650498,-500.0,0.00014367,2]
[337965095,1726218650507,-191.45320799,0.00014367,2]
[337965097,1726218650516,-521.88856402,0.00014367,2]
[337965099,1726218650525,-500.0,0.00014367,2]
[337965101,1726218650534,-684.79,0.00014367,2]
[337965103,1726218650543,-636.35,0.00014367,2]
[337965105,1726218650553,-573.2,0.00014367,2]
[337965107,1726218650562,-686.46,0.00014367,2]
[337965109,1726218650571,-1491.23,0.00014367,2]
[337965111,1726218650580,-500.0,0.00014367,2]
[337965113,1726218650589,-1664.27,0.00014367,2]
[337965114,1726218650598,-500.0,0.00014367,2]
[337965116,1726218650607,-1564.31,0.00014367,2]
[337965118,1726218650617,-500.0,0.00014367,2]
[337965120,1726218650626,-500.0,0.00014367,2]
[337965122,1726218650635,-500.0,0.00014367,2]
[337965124,1726218650645,-1413.14,0.00014367,2]
[337965126,1726218650654,-500.0,0.00014367,2]
[337965128,1726218650663,-500.0,0.00014367,2]
[337965130,1726218650671,-3051.98,0.00014367,2]
[337965132,1726218650682,-500.0,0.00014367,2]
[337965134,1726218650691,-500.0,0.00014367,2]
[337965136,1726218650700,-935.88,0.00014367,2]
[337965138,1726218650710,-6217.46,0.00014367,2]
[337965140,1726218650719,-500.0,0.00014367,2]
[337965142,1726218650728,-1193.26,0.00014367,2]
[337965144,1726218650737,-1336.82,0.00014367,2]
[337965146,1726218650747,-500.0,0.00014367,2]
[337965148,1726218650755,-500.0,0.00014367,2]
[337965150,1726218650765,-500.0,0.00014367,2]
[337965152,1726218650774,-505.77,0.00014367,2]
[337965154,1726218650783,-500.0,0.00014367,2]
[337965155,1726218650792,-500.0,0.00014367,2]
[337965157,1726218650801,-1166.31,0.00014367,2]
[337965159,1726218650810,-500.0,0.00014367,2]
[337965161,1726218650820,-7145.51,0.00014367,2]
[337965163,1726218650829,-546.84,0.00014367,2]
[337965165,1726218650839,-500.0,0.00014367,2]
[337965167,1726218650848,-500.0,0.00014367,2]
[337965169,1726218650857,-500.0,0.00014367,2]
[337965171,1726218650867,-1017.98,0.00014367,2]
[337965173,1726218650876,-500.0,0.00014367,2]
[337965175,1726218650886,-500.0,0.00014367,2]
[337965177,1726218650896,-500.0,0.00014367,2]
[337965179,1726218650906,-604.72,0.00014367,2]
[337965181,1726218650916,-1027.28,0.00014367,2]
[337965184,1726218650926,-500.0,0.00014367,2]
[337965185,1726218650935,-500.0,0.00014367,2]
[337965188,1726218650945,-544.09,0.00014367,2]
[337965189,1726218650955,-1018.93,0.00014368,2]
[337965191,1726218650965,-500.0,0.00014368,2]
[337965193,1726218650974,-315.32238649,0.00014368,2]
[337965195,1726218650985,-500.0,0.00014368,2]
[337965197,1726218650995,-500.0,0.00014368,2]
[337965199,1726218651005,-500.0,0.00014368,2]
[337965201,1726218651014,-500.0,0.00014368,2]
[337965203,1726218651024,-500.0,0.00014368,2]
[337965205,1726218651033,-500.0,0.00014368,2]
[337965207,1726218651042,-500.0,0.00014368,2]
[337965209,1726218651052,-500.0,0.00014368,2]
[337965211,1726218651062,-210.02,0.00014368,2]
[337965213,1726218651071,-500.0,0.00014368,2]
[337965215,1726218651081,-700.3,0.00014368,2]
[337965217,1726218651093,-500.0,0.00014368,2]
[337965219,1726218651104,-500.0,0.00014368,2]
[337965221,1726218651114,-500.0,0.00014368,2]
[337965224,1726218651123,-500.0,0.00014368,2]
[337965226,1726218651133,-500.0,0.00014368,2]
[337965228,1726218651145,-645.60401642,0.00014368,2]
[337965230,1726218651153,-500.0,0.00014368,2]
[337965232,1726218651163,-500.0,0.00014368,2]
[337965234,1726218651177,-500.0,0.00014368,2]
[337965236,1726218651186,-500.0,0.00014368,2]
[337965238,1726218651196,-500.0,0.00014368,2]
[337965240,1726218651206,-500.0,0.00014368,2]
[337965242,1726218651218,-500.0,0.00014368,2]
[337965244,1726218651228,-500.0,0.00014368,2]
[337965246,1726218651240,-500.0,0.00014368,2]
[337965248,1726218651249,-500.0,0.00014368,2]
[337965250,1726218651260,-500.0,0.00014368,2]
[337965252,1726218651271,-500.0,0.00014368,2]
[337965254,1726218651280,-500.0,0.00014368,2]
[337965256,1726218651290,-500.0,0.00014368,2]
[337965258,1726218651300,-705.44,0.00014368,2]
[337965260,1726218651310,-772.83,0.00014368,2]
[337965262,1726218651320,-500.0,0.00014368,2]
[337965264,1726218651329,-500.0,0.00014368,2]
[337965266,1726218651339,-500.0,0.00014368,2]
[337965268,1726218651348,-500.0,0.00014368,2]
[337965270,1726218651357,-500.0,0.00014368,2]
[337965272,1726218651366,-500.0,0.00014368,2]
[337965274,1726218651375,-500.0,0.00014368,2]
[337965276,1726218651384,-598.48,0.00014368,2]
[337965278,1726218651394,-678.8,0.00014368,2]
[337965280,1726218651404,-1399.64,0.00014368,2]
[337965282,1726218651413,-5569.89,0.00014368,2]
[337965284,1726218651422,-654.19,0.00014368,2]
[337965286,1726218651432,-8461.19,0.00014368,2]
[337965287,1726218651441,-519.34,0.00014368,2]
[337965289,1726218651450,-842.69,0.00014368,2]
[337965291,1726218651459,-500.0,0.00014368,2]
[337965293,1726218651468,-500.0,0.00014368,2]
[337965295,1726218651478,-619.44,0.00014368,2]
[337965297,1726218651487,-500.0,0.00014368,2]
[337965299,1726218651496,-500.0,0.00014368,2]
[337965301,1726218651505,-500.0,0.00014368,2]
[337965303,1726218651515,-735.86,0.00014368,2]
[337965305,1726218651525,-2568.57,0.00014368,2]
[337965307,1726218651534,-524.53,0.00014368,2]
[337965309,1726218651543,-921.95,0.00014368,2]
[337965311,1726218651552,-560.62,0.00014368,2]
[337965313,1726218651561,-500.0,0.00014368,2]
[337965315,1726218651570,-500.0,0.00014368,2]
[337965317,1726218651580,-946.96,0.00014368,2]
[337965319,1726218651589,-500.0,0.00014368,2]
[337965321,1726218651598,-502.01,0.00014368,2]
[337965323,1726218651607,-680.43,0.00014368,2]
[337965325,1726218651616,-500.0,0.00014368,2]
[337965327,1726218651626,-500.0,0.00014368,2]
[337965329,1726218651635,-557.51,0.00014368,2]
[337965331,1726218651644,-500.0,0.00014368,2]
[337965333,1726218651654,-500.0,0.00014368,2]
[337965335,1726218651663,-500.0,0.00014368,2]
[337965337,1726218651673,-500.0,0.00014368,2]
[337965339,1726218651682,-500.0,0.00014368,2]
[337965341,1726218651691,-731.18,0.00014368,2]
[337965343,1726218651701,-500.0,0.00014368,2]
[337965345,1726218651710,-500.0,0.00014368,2]
[337965347,1726218651720,-500.0,0.00014368,2]
[337965349,1726218651729,-625.36,0.00014368,2]
[337965351,1726218651739,-500.0,0.00014368,2]
[337965353,1726218651749,-500.0,0.00014368,2]
[337965355,1726218651759,-500.0,0.00014368,2]
[337965357,1726218651771,-500.0,0.00014368,2]
[337965359,1726218651781,-500.0,0.00014368,2]
[337965361,1726218651791,-887.09,0.00014368,2]
[337965363,1726218651802,-500.0,0.00014368,2]
[337965366,1726218651811,-500.0,0.00014368,2]
[337965368,1726218651821,-788.03,0.00014368,2]
[337965370,1726218651831,-500.0,0.00014368,2]
[337965372,1726218651841,-500.0,0.00014368,2]
[337965374,1726218651851,-500.0,0.00014368,2]
[337965376,1726218651861,-500.0,0.00014368,2]
[337965378,1726218651872,-500.0,0.00014368,2]
[337965380,1726218651882,-500.0,0.00014368,2]
[337965382,1726218651892,-500.0,0.00014368,2]
[337965384,1726218651902,-500.0,0.00014368,2]
[337965386,1726218651912,-631.4,0.00014368,2]
[337965388,1726218651923,-500.0,0.00014368,2]
[337965390,1726218651932,-500.0,0.00014368,2]
[337965392,1726218651943,-500.0,0.00014368,2]
[337965394,1726218651953,-500.0,0.00014368,2]
[337965396,1726218651962,-500.0,0.00014368,2]
[337965398,1726218651972,-500.0,0.00014368,2]
[337965400,1726218651982,-500.0,0.00014368,2]
[337965402,1726218651992,-500.0,0.00014368,2]
[337965404,1726218652001,-500.0,0.00014368,2]
[337965406,1726218652011,-187.43846016,0.00014369,2]
[337965408,1726218652021,-532.61,0.00014369,2]
[337965410,1726218652031,-500.0,0.00014369,2]
[337965412,1726218652041,-500.0,0.00014369,2]
[337965414,1726218652050,-500.0,0.00014369,2]
[337965416,1726218652061,-500.0,0.00014369,2]
[337965418,1726218652072,-500.0,0.00014369,2]
[337965420,1726218652083,-500.0,0.00014369,2]
[337965422,1726218652093,-600.68,0.00014369,2]
[337965424,1726218652103,-500.0,0.00014369,2]
[337965426,1726218652114,-500.0,0.00014369,2]
[337965428,1726218652124,-500.0,0.00014369,2]
[337965430,1726218652135,-500.0,0.00014369,2]
[337965432,1726218652144,-500.0,0.00014369,2]
[337965434,1726218652153,-500.0,0.00014369,2]
[337965436,1726218652168,-500.0,0.00014369,2]
[337965438,1726218652180,-500.0,0.00014369,2]
[337965440,1726218652190,-500.0,0.00014369,2]
[337965442,1726218652199,-500.0,0.00014369,2]
[337965444,1726218652212,-500.0,0.00014369,2]
[337965446,1726218652222,-500.0,0.00014369,2]
[337965448,1726218652231,-500.0,0.00014369,2]
[337965450,1726218652242,-500.0,0.00014369,2]
[337965452,1726218652252,-500.0,0.00014369,2]
[337965454,1726218652263,-500.0,0.00014369,2]
[337965456,1726218652272,-500.0,0.00014369,2]
[337965458,1726218652282,-575.28,0.00014369,2]
[337965460,1726218652294,-500.0,0.00014369,2]
[337965462,1726218652304,-571.35,0.00014369,2]
[337965464,1726218652315,-500.0,0.00014369,2]
[337965466,1726218652324,-609.77,0.00014369,2]
[337965468,1726218652335,-500.0,0.00014369,2]
[337965470,1726218652344,-528.89,0.00014369,2]
[337965472,1726218652354,-500.0,0.00014369,2]
[337965474,1726218652364,-804.65,0.00014369,2]
[337965476,1726218652374,-500.0,0.00014369,2]
[337965478,1726218652384,-500.0,0.00014369,2]
[337965480,1726218652394,-635.79,0.00014369,2]
[337965482,1726218652403,-208.64,0.00014384,2]
[337965484,1726218652413,-246.89441,0.00014407,2]
[337965486,1726218652423,-1000.0,0.00014474,2]
[337965488,1726218652433,-608.45161813,0.00014516,2]
[337965490,1726218652443,-500.0,0.00014521,2]
[337965492,1726218652454,-171.17415423,0.00014543,2]
[337965494,1726218652464,-1000.0,0.00014629,2]
[337965496,1726218652473,-153.81130166,0.00014633,3]
[337965498,1726218652483,-500.0,0.00014641,2]
[337965500,1726218652493,-500.0,0.00014641,2]
[337965502,1726218652503,-500.0,0.00014641,2]
[337965504,1726218652512,-187.32551612,0.00014641,2]
[337965506,1726218652522,-1051.47,0.00014641,2]
[337965508,1726218652532,-500.0,0.00014641,2]
[337965510,1726218652542,-500.0,0.00014641,2]
[337965512,1726218652551,-500.0,0.00014641,2]
[337965514,1726218652561,-684.79,0.00014641,2]
[337965516,1726218652570,-636.35,0.00014641,2]
[337965518,1726218652580,-573.2,0.00014641,2]
[337965520,1726218652589,-686.46,0.00014641,2]
[337965521,1726218652598,-1491.23,0.00014641,2]
[337965523,1726218652608,-500.0,0.00014641,2]
[337965525,1726218652618,-1664.27,0.00014641,2]
[337965527,1726218652627,-500.0,0.00014641,2]
[337965529,1726218652637,-1564.31,0.00014641,2]
[337965531,1726218652647,-500.0,0.00014641,2]
[337965533,1726218652657,-500.0,0.00014641,2]
[337965535,1726218652666,-500.0,0.00014641,2]
[337965537,1726218652675,-1413.14,0.00014641,2]
[337965539,1726218652685,-500.0,0.00014641,2]
[337965541,1726218652694,-500.0,0.00014641,2]
[337965542,1726218652704,-3051.98,0.00014641,2]
[337965543,1726218652713,-500.0,0.00014641,2]
[337965544,1726218652723,-500.0,0.00014641,2]
[337965545,1726218652733,-935.88,0.00014641,2]
[337965546,1726218652743,-6217.46,0.00014641,2]
[337965547,1726218652753,-500.0,0.00014641,2]
[337965548,1726218652763,-1193.26,0.00014641,2]
[337965549,1726218652774,-1336.82,0.00014641,2]
[337965550,1726218652785,-194.90247843,0.00014641,2]
[337965551,1726218652796,-500.0,0.00014641,2]
[337965552,1726218652806,-500.0,0.00014641,2]
[337965553,1726218652819,-505.77,0.00014641,2]
[337965554,1726218652829,-500.0,0.00014641,2]
[337965556,1726218652840,-500.0,0.00014641,2]
[337965558,1726218652850,-1166.31,0.00014641,2]
[337965560,1726218652860,-373.14695836,0.00014641,2]
[337965562,1726218652870,-7145.51,0.00014641,2]
[337965564,1726218652881,-546.84,0.00014641,2]
[337965566,1726218652891,-500.0,0.00014641,2]
[337965568,1726218652900,-500.0,0.00014641,2]
[337965570,1726218652910,-500.0,0.00014641,2]
[337965572,1726218652920,-1017.98,0.00014641,2]
[337965574,1726218652930,-500.0,0.00014641,2]
[337965576,1726218652940,-500.0,0.00014641,2]
[337965578,1726218652949,-500.0,0.00014641,2]
[337965580,1726218652959,-604.72,0.00014641,2]
[337965582,1726218652969,-1027.28,0.00014641,2]
[337965584,1726218652978,-500.0,0.00014641,2]
[337965586,1726218652988,-500.0,0.00014641,2]
[337965588,1726218652997,-544.09,0.00014641,2]